[Event "Live Chess"]
[Site "Chess.com"]
[Date "2023.05.20"]
[Round "-"]
[White "john_chandler"]
[Black "MaximKhimchenko"]
[Result "0-1"]
[WhiteElo "966"]
[BlackElo "1378"]
[TimeControl "300"]
[EndTime "9:29:55 PDT"]
[Termination "MaximKhimchenko won by checkmate"]

1. c4 {[%clk 0:04:57.6]} 1... e5 {[%clk 0:04:59.9]} 2. Nc3 {[%clk 0:04:55.2]}
2... Bc5 {[%clk 0:04:57.7]} 3. e3 {[%clk 0:04:53.2]} 3... Nf6 {[%clk 0:04:55]}
4. g3 {[%clk 0:04:48.8]} 4... d5 {[%clk 0:04:53.7]} 5. cxd5 {[%clk 0:04:37.4]}
5... Nxd5 {[%clk 0:04:53.6]} 6. Bg2 {[%clk 0:04:32.5]} 6... Nxc3 {[%clk
0:04:50.9]} 7. bxc3 {[%clk 0:04:29.1]} 7... Nc6 {[%clk 0:04:49.5]} 8. Ne2 {[%clk
0:04:24.5]} 8... Be6 {[%clk 0:04:48]} 9. O-O {[%clk 0:04:19.8]} 9... h5 {[%clk
0:04:46.6]} 10. h4 {[%clk 0:04:05.8]} 10... Qd7 {[%clk 0:04:43.5]} 11. f4 {[%clk
0:03:54.4]} 11... Bh3 {[%clk 0:04:39]} 12. f5 {[%clk 0:03:41.7]} 12... Bxg2
{[%clk 0:04:36]} 13. Kxg2 {[%clk 0:03:35.8]} 13... O-O-O {[%clk 0:04:32.8]} 14.
e4 {[%clk 0:03:23.2]} 14... g6 {[%clk 0:04:02.4]} 15. f6 {[%clk 0:03:07.7]}
15... g5 {[%clk 0:03:57.6]} 16. Rb1 {[%clk 0:02:49]} 16... gxh4 {[%clk
0:03:55.6]} 17. a4 {[%clk 0:02:25.9]} 17... hxg3 {[%clk 0:03:51.8]} 18. Nxg3
{[%clk 0:02:19.5]} 18... h4 {[%clk 0:03:50.2]} 19. Nf5 {[%clk 0:02:03]} 19...
Rdg8+ {[%clk 0:03:42.8]} 20. Ng7 {[%clk 0:01:57.5]} 20... Qd3 {[%clk 0:03:27.8]}
21. Bb2 {[%clk 0:01:38.1]} 21... Qg3+ {[%clk 0:03:26]} 22. Kh1 {[%clk
0:01:31.2]} 22... Qh3# {[%clk 0:03:25.9]} 0-1

[Event "Live Chess"]
[Site "Chess.com"]
[Date "2023.05.20"]
[Round "-"]
[White "jennybobby44"]
[Black "Rusty_Bridges"]
[Result "1-0"]
[WhiteElo "1855"]
[BlackElo "1413"]
[TimeControl "300"]
[EndTime "9:30:06 PDT"]
[Termination "jennybobby44 won by resignation"]

1. e4 {[%clk 0:04:57.9]} 1... d6 {[%clk 0:04:57.8]} 2. Nf3 {[%clk 0:04:56]} 2...
Nf6 {[%clk 0:04:55.4]} 3. Nc3 {[%clk 0:04:54.7]} 3... Nbd7 {[%clk 0:04:54]} 4.
g3 {[%clk 0:04:53.8]} 4... e5 {[%clk 0:04:53.6]} 5. Bg2 {[%clk 0:04:52.6]} 5...
Be7 {[%clk 0:04:51.3]} 6. O-O {[%clk 0:04:47.3]} 6... h6 {[%clk 0:04:50.3]} 7.
d4 {[%clk 0:04:44.9]} 7... c6 {[%clk 0:04:45.5]} 8. h3 {[%clk 0:04:43.5]} 8...
Qc7 {[%clk 0:04:44.4]} 9. Re1 {[%clk 0:04:40.6]} 9... Nf8 {[%clk 0:04:39.7]} 10.
a4 {[%clk 0:04:34.2]} 10... g5 {[%clk 0:04:38.6]} 11. Nh2 {[%clk 0:04:07.4]}
11... Ng6 {[%clk 0:04:35.4]} 12. b4 {[%clk 0:03:44.8]} 12... Bd7 {[%clk
0:04:17.2]} 13. b5 {[%clk 0:03:39.4]} 13... Qc8 {[%clk 0:03:49.8]} 14. g4 {[%clk
0:03:29.1]} 14... Nf4 {[%clk 0:03:33.1]} 15. Bxf4 {[%clk 0:03:27.3]} 15... gxf4
{[%clk 0:03:28.9]} 16. f3 {[%clk 0:03:17.7]} 16... h5 {[%clk 0:03:26.2]} 17.
bxc6 {[%clk 0:02:39.9]} 17... bxc6 {[%clk 0:03:20]} 18. dxe5 {[%clk 0:02:30.7]}
18... dxe5 {[%clk 0:03:14.9]} 19. Kf1 {[%clk 0:02:16.7]} 19... hxg4 {[%clk
0:03:12.8]} 20. Nxg4 {[%clk 0:02:15.6]} 20... Nxg4 {[%clk 0:03:06.6]} 21. hxg4
{[%clk 0:02:14.7]} 21... Bb4 {[%clk 0:02:39.8]} 22. Qd3 {[%clk 0:02:10.9]} 22...
Qc7 {[%clk 0:02:03.6]} 23. Red1 {[%clk 0:02:05.7]} 23... Rd8 {[%clk 0:01:59.3]}
24. Qc4 {[%clk 0:01:19.8]} 24... a5 {[%clk 0:01:41.7]} 25. Nd5 {[%clk
0:01:06.2]} 25... Qa7 {[%clk 0:01:10.5]} 26. Nxb4 {[%clk 0:00:52.4]} 26... axb4
{[%clk 0:01:05.1]} 27. Qxb4 {[%clk 0:00:45.9]} 27... Rb8 {[%clk 0:00:47.1]} 28.
Qd6 {[%clk 0:00:42.3]} 28... Rb2 {[%clk 0:00:38.5]} 29. Qxe5+ {[%clk 0:00:40.5]}
29... Be6 {[%clk 0:00:35.8]} 30. Qxh8+ {[%clk 0:00:38.1]} 30... Ke7 {[%clk
0:00:32.7]} 31. Qxb2 {[%clk 0:00:36]} 1-0

[Event "Live Chess"]
[Site "Chess.com"]
[Date "2023.05.20"]
[Round "-"]
[White "vinni3012"]
[Black "akp42"]
[Result "1-0"]
[WhiteElo "1880"]
[BlackElo "1958"]
[TimeControl "300"]
[EndTime "9:30:09 PDT"]
[Termination "vinni3012 won by checkmate"]

1. d4 {[%clk 0:04:58.4]} 1... Nf6 {[%clk 0:04:58.1]} 2. c4 {[%clk 0:04:57.3]}
2... e6 {[%clk 0:04:57.1]} 3. Nc3 {[%clk 0:04:54]} 3... Bb4 {[%clk 0:04:56.5]}
4. Qc2 {[%clk 0:04:47]} 4... O-O {[%clk 0:04:54.4]} 5. Nf3 {[%clk 0:04:45.3]}
5... b6 {[%clk 0:04:52.5]} 6. a3 {[%clk 0:04:41.3]} 6... Be7 {[%clk 0:04:49.2]}
7. e4 {[%clk 0:04:29.8]} 7... Bb7 {[%clk 0:04:46.5]} 8. e5 {[%clk 0:04:27.7]}
8... Ne8 {[%clk 0:04:43.7]} 9. Bd3 {[%clk 0:04:26.5]} 9... h6 {[%clk 0:04:41.5]}
10. Be4 {[%clk 0:04:01.1]} 10... Bxe4 {[%clk 0:04:37.7]} 11. Qxe4 {[%clk
0:04:00]} 11... Nc6 {[%clk 0:04:27.6]} 12. b4 {[%clk 0:03:42]} 12... f5 {[%clk
0:04:25.9]} 13. Qc2 {[%clk 0:03:37.9]} 13... d6 {[%clk 0:03:52.1]} 14. b5 {[%clk
0:03:20.2]} 14... Na5 {[%clk 0:03:50.5]} 15. Ne2 {[%clk 0:03:14.2]} 15... d5
{[%clk 0:03:38.1]} 16. c5 {[%clk 0:03:00.1]} 16... Nc4 {[%clk 0:03:16.8]} 17.
Nd2 {[%clk 0:02:40.5]} 17... Nxd2 {[%clk 0:03:02.2]} 18. Bxd2 {[%clk 0:02:38.7]}
18... a6 {[%clk 0:02:45.2]} 19. Nf4 {[%clk 0:02:15.1]} 19... Qd7 {[%clk
0:02:44.1]} 20. cxb6 {[%clk 0:02:01.2]} 20... cxb6 {[%clk 0:02:42]} 21. Qc6
{[%clk 0:02:00.1]} 21... Qxc6 {[%clk 0:02:31.3]} 22. bxc6 {[%clk 0:01:58]} 22...
Nc7 {[%clk 0:02:30.4]} 23. Ng6 {[%clk 0:01:51]} 23... Rfe8 {[%clk 0:02:24.1]}
24. Nxe7+ {[%clk 0:01:30.6]} 24... Rxe7 {[%clk 0:02:22.5]} 25. Bb4 {[%clk
0:01:29.2]} 25... Ree8 {[%clk 0:02:20.1]} 26. a4 {[%clk 0:01:23.4]} 26... Kf7
{[%clk 0:02:17.8]} 27. Bd6 {[%clk 0:01:18.7]} 27... Rec8 {[%clk 0:02:12.7]} 28.
Kd2 {[%clk 0:01:16.9]} 28... g5 {[%clk 0:02:09]} 29. Rhb1 {[%clk 0:01:11.4]}
29... b5 {[%clk 0:02:05.9]} 30. Bxc7 {[%clk 0:00:55.8]} 30... Rxc7 {[%clk
0:02:04.5]} 31. axb5 {[%clk 0:00:55.1]} 31... a5 {[%clk 0:01:55.4]} 32. Rc1
{[%clk 0:00:51]} 32... Rb8 {[%clk 0:01:36.9]} 33. Rxa5 {[%clk 0:00:48.6]} 33...
Rb6 {[%clk 0:01:36.2]} 34. Rc5 {[%clk 0:00:42.5]} 34... f4 {[%clk 0:01:33.9]}
35. Ra6 {[%clk 0:00:40.2]} 35... Rxa6 {[%clk 0:01:31]} 36. bxa6 {[%clk
0:00:40.1]} 36... Ke7 {[%clk 0:01:28.4]} 37. a7 {[%clk 0:00:33.6]} 37... Rc8
{[%clk 0:01:27.5]} 38. Kc3 {[%clk 0:00:23.4]} 38... Kd8 {[%clk 0:01:26.4]} 39.
Kb4 {[%clk 0:00:21.4]} 39... Kc7 {[%clk 0:01:25.4]} 40. Ka5 {[%clk 0:00:16.8]}
40... Ra8 {[%clk 0:01:19.9]} 41. Ka6 {[%clk 0:00:16.2]} 41... h5 {[%clk
0:01:17.3]} 42. Rb5 {[%clk 0:00:14.6]} 42... g4 {[%clk 0:01:13.3]} 43. Rb7+
{[%clk 0:00:13.5]} 43... Kxc6 {[%clk 0:01:12.2]} 44. Rb8 {[%clk 0:00:12.8]}
44... Rxb8 {[%clk 0:01:08.1]} 45. axb8=Q {[%clk 0:00:11.5]} 45... f3 {[%clk
0:01:05.4]} 46. Qd6# {[%clk 0:00:11.4]} 1-0

[Event "Live Chess"]
[Site "Chess.com"]
[Date "2023.05.20"]
[Round "-"]
[White "MarkLim1"]
[Black "boilerboy1"]
[Result "0-1"]
[WhiteElo "1600"]
[BlackElo "1079"]
[TimeControl "300"]
[EndTime "9:30:17 PDT"]
[Termination "boilerboy1 won by checkmate"]

1. d4 {[%clk 0:04:57.1]} 1... Nf6 {[%clk 0:04:53.8]} 2. Nf3 {[%clk 0:04:56]}
2... g6 {[%clk 0:04:52]} 3. c4 {[%clk 0:04:54.8]} 3... Bg7 {[%clk 0:04:49.8]} 4.
Nc3 {[%clk 0:04:53.9]} 4... O-O {[%clk 0:04:46.9]} 5. e4 {[%clk 0:04:53.1]} 5...
c5 {[%clk 0:04:45.2]} 6. d5 {[%clk 0:04:51.9]} 6... d6 {[%clk 0:04:43.4]} 7. Be2
{[%clk 0:04:51]} 7... Nbd7 {[%clk 0:04:41.4]} 8. O-O {[%clk 0:04:49.6]} 8... a6
{[%clk 0:04:35.9]} 9. Rb1 {[%clk 0:04:47.9]} 9... Rb8 {[%clk 0:04:31.8]} 10. a3
{[%clk 0:04:46.8]} 10... b5 {[%clk 0:04:30]} 11. cxb5 {[%clk 0:04:45.5]} 11...
axb5 {[%clk 0:04:28.6]} 12. Bxb5 {[%clk 0:04:41.8]} 12... Nb6 {[%clk 0:04:24.1]}
13. Bg5 {[%clk 0:04:37.7]} 13... c4 {[%clk 0:04:22.7]} 14. Nd4 {[%clk
0:04:33.8]} 14... Bb7 {[%clk 0:04:18.3]} 15. Bc6 {[%clk 0:04:30.2]} 15... Qc7
{[%clk 0:03:41.5]} 16. Bxb7 {[%clk 0:04:03.9]} 16... Qxb7 {[%clk 0:03:35.4]} 17.
Nc6 {[%clk 0:03:54]} 17... Ra8 {[%clk 0:03:31.3]} 18. f4 {[%clk 0:03:29]} 18...
Na4 {[%clk 0:03:18.3]} 19. Nxa4 {[%clk 0:03:01]} 19... Rxa4 {[%clk 0:03:12.1]}
20. Qxa4 {[%clk 0:02:59.5]} 20... Qb6+ {[%clk 0:03:09.4]} 21. Kh1 {[%clk
0:02:57.2]} 21... Nxe4 {[%clk 0:03:07.4]} 22. Nxe7+ {[%clk 0:02:51]} 22... Kh8
{[%clk 0:03:02.7]} 23. Qc2 {[%clk 0:02:49.7]} 23... Nxg5 {[%clk 0:02:51.8]} 24.
fxg5 {[%clk 0:02:46.5]} 24... Qe3 {[%clk 0:02:40.8]} 25. Qxc4 {[%clk 0:02:40.9]}
25... Qxe7 {[%clk 0:02:38.7]} 26. h4 {[%clk 0:02:33.3]} 26... h6 {[%clk
0:02:36.6]} 27. gxh6 {[%clk 0:02:30.9]} 27... Bxh6 {[%clk 0:02:32.1]} 28. Qf4
{[%clk 0:02:27.6]} 28... Bxf4 {[%clk 0:02:29.8]} 29. Rxf4 {[%clk 0:02:26.6]}
29... Qe5 {[%clk 0:02:28]} 30. Rbf1 {[%clk 0:02:23.9]} 30... Kg7 {[%clk
0:02:18.4]} 31. b4 {[%clk 0:02:20.2]} 31... Qxd5 {[%clk 0:02:14.9]} 32. a4
{[%clk 0:02:19.4]} 32... Qh5 {[%clk 0:01:49.3]} 33. a5 {[%clk 0:02:16.5]} 33...
g5 {[%clk 0:01:38.7]} 34. Rf5 {[%clk 0:02:13.6]} 34... Qxh4+ {[%clk 0:01:35.8]}
35. Kg1 {[%clk 0:02:11.9]} 35... f6 {[%clk 0:01:32.2]} 36. b5 {[%clk 0:02:08.5]}
36... Qb4 {[%clk 0:01:27.4]} 37. a6 {[%clk 0:02:06.4]} 37... Qd4+ {[%clk
0:01:23.5]} 38. Kh1 {[%clk 0:02:04.8]} 38... Qh4+ {[%clk 0:01:21.3]} 39. Kg1
{[%clk 0:02:03.9]} 39... Rf7 {[%clk 0:01:17.8]} 40. b6 {[%clk 0:02:01.7]} 40...
Qd4+ {[%clk 0:01:12.8]} 41. Kh1 {[%clk 0:01:59.2]} 41... Qxb6 {[%clk 0:01:11.7]}
42. Ra1 {[%clk 0:01:58]} 42... Qa7 {[%clk 0:01:09.7]} 43. Rd5 {[%clk 0:01:53]}
43... Rd7 {[%clk 0:01:07]} 44. Kh2 {[%clk 0:01:43]} 44... Kg6 {[%clk 0:01:06.2]}
45. Kg3 {[%clk 0:01:42]} 45... Qe3+ {[%clk 0:00:55.9]} 46. Kh2 {[%clk
0:01:37.5]} 46... Qf4+ {[%clk 0:00:54.5]} 47. Kh1 {[%clk 0:01:35.7]} 47... Qe3
{[%clk 0:00:45.3]} 48. a7 {[%clk 0:01:31]} 48... Rxa7 {[%clk 0:00:42.9]} 49.
Rxa7 {[%clk 0:01:26.4]} 49... Qxa7 {[%clk 0:00:40.9]} 50. Rxd6 {[%clk
0:01:25.6]} 50... Qa1+ {[%clk 0:00:38]} 51. Kh2 {[%clk 0:01:23.6]} 51... Qe5+
{[%clk 0:00:33.7]} 52. Kh1 {[%clk 0:01:22.5]} 52... Qxd6 {[%clk 0:00:32.9]} 53.
Kg1 {[%clk 0:01:19.1]} 53... Kf5 {[%clk 0:00:31.8]} 54. Kf2 {[%clk 0:01:18.2]}
54... Kf4 {[%clk 0:00:30.9]} 55. g3+ {[%clk 0:01:17.2]} 55... Kg4 {[%clk
0:00:29.4]} 56. Ke3 {[%clk 0:01:17.1]} 56... Qe5+ {[%clk 0:00:28]} 57. Kd3
{[%clk 0:01:16.3]} 57... Qxg3+ {[%clk 0:00:27]} 58. Ke4 {[%clk 0:01:15.4]} 58...
Qe5+ {[%clk 0:00:24.6]} 59. Kd3 {[%clk 0:01:14.4]} 59... f5 {[%clk 0:00:23.8]}
60. Kc4 {[%clk 0:01:13.3]} 60... Qe4+ {[%clk 0:00:21.3]} 61. Kc5 {[%clk
0:01:12.8]} 61... f4 {[%clk 0:00:20.7]} 62. Kd6 {[%clk 0:01:12.7]} 62... f3
{[%clk 0:00:19.9]} 63. Kd7 {[%clk 0:01:12]} 63... f2 {[%clk 0:00:19.1]} 64. Kd6
{[%clk 0:01:11.9]} 64... f1=Q {[%clk 0:00:17.6]} 65. Kc5 {[%clk 0:01:11.8]}
65... Qc1+ {[%clk 0:00:15.9]} 66. Kd6 {[%clk 0:01:11.7]} 66... Qef4+ {[%clk
0:00:14.4]} 67. Kd5 {[%clk 0:01:10.7]} 67... Qcc4# {[%clk 0:00:10.5]} 0-1

[Event "Live Chess"]
[Site "Chess.com"]
[Date "2023.05.20"]
[Round "-"]
[White "OceanFloater"]
[Black "Pandreq"]
[Result "1-0"]
[WhiteElo "983"]
[BlackElo "1258"]
[TimeControl "300"]
[EndTime "9:30:17 PDT"]
[Termination "OceanFloater won by resignation"]

1. e4 {[%clk 0:04:57.6]} 1... Nf6 {[%clk 0:04:58.7]} 2. Nf3 {[%clk 0:04:57.3]}
2... Nxe4 {[%clk 0:04:57.2]} 3. d3 {[%clk 0:04:55.8]} 3... Nf6 {[%clk
0:04:55.3]} 4. Bg5 {[%clk 0:04:54.1]} 4... e6 {[%clk 0:04:53.8]} 5. Nc3 {[%clk
0:04:51.3]} 5... Be7 {[%clk 0:04:52.6]} 6. d4 {[%clk 0:04:50.1]} 6... d5 {[%clk
0:04:50.5]} 7. Ne5 {[%clk 0:04:47.8]} 7... Nbd7 {[%clk 0:04:46.6]} 8. Bb5 {[%clk
0:04:41.6]} 8... c6 {[%clk 0:04:36.8]} 9. Ba4 {[%clk 0:04:39.9]} 9... b5 {[%clk
0:04:34.1]} 10. Bb3 {[%clk 0:04:38.4]} 10... Nxe5 {[%clk 0:04:29.8]} 11. dxe5
{[%clk 0:04:37.4]} 11... Nd7 {[%clk 0:04:28.5]} 12. Bxe7 {[%clk 0:04:34.4]}
12... Qxe7 {[%clk 0:04:23]} 13. Qe2 {[%clk 0:04:29.2]} 13... Qg5 {[%clk
0:04:18.8]} 14. O-O {[%clk 0:04:26]} 14... Qxe5 {[%clk 0:04:12.8]} 15. Qxe5
{[%clk 0:04:17]} 15... Nxe5 {[%clk 0:04:11.4]} 16. f4 {[%clk 0:04:16.1]} 16...
Nc4 {[%clk 0:04:09.8]} 17. Bxc4 {[%clk 0:04:05.3]} 17... bxc4 {[%clk 0:04:08.4]}
18. Na4 {[%clk 0:03:59.5]} 18... Ba6 {[%clk 0:04:00.7]} 19. Nc5 {[%clk
0:03:57.3]} 19... Bb5 {[%clk 0:03:53.8]} 20. a4 {[%clk 0:03:56]} 20... c3 {[%clk
0:03:21.9]} 21. axb5 {[%clk 0:03:53.6]} 21... cxb2 {[%clk 0:03:19.2]} 22. Rab1
{[%clk 0:03:52.5]} 22... cxb5 {[%clk 0:03:11.5]} 23. Rxb2 {[%clk 0:03:50.9]}
23... a6 {[%clk 0:03:07.1]} 24. f5 {[%clk 0:03:48]} 24... O-O {[%clk 0:03:03.2]}
25. fxe6 {[%clk 0:03:45.5]} 25... fxe6 {[%clk 0:03:00.4]} 26. Rxf8+ {[%clk
0:03:42.8]} 26... Rxf8 {[%clk 0:02:58.3]} 27. Nxe6 {[%clk 0:03:42]} 27... Re8
{[%clk 0:02:53]} 28. Nc7 {[%clk 0:03:36.5]} 28... Re2 {[%clk 0:02:49.7]} 29.
Nxa6 {[%clk 0:03:34.1]} 29... d4 {[%clk 0:02:48.2]} 30. Nc5 {[%clk 0:03:32.2]}
30... Kf7 {[%clk 0:02:42]} 31. Kf1 {[%clk 0:03:28.9]} 31... Rd2 {[%clk
0:02:33.1]} 32. Ne4 {[%clk 0:03:23.3]} 32... Rd1+ {[%clk 0:02:24.6]} 33. Ke2
{[%clk 0:03:21]} 33... Ra1 {[%clk 0:02:14.4]} 34. Rxb5 {[%clk 0:03:17.1]} 34...
Ra2 {[%clk 0:01:57.3]} 35. Kd3 {[%clk 0:03:14.3]} 35... h6 {[%clk 0:01:52.2]}
36. h4 {[%clk 0:03:05.6]} 36... Kg6 {[%clk 0:01:45.8]} 37. g4 {[%clk 0:03:02.9]}
37... Ra4 {[%clk 0:01:36.1]} 38. Nc5 {[%clk 0:02:59.1]} 38... Ra2 {[%clk
0:01:29.4]} 39. Nb3 {[%clk 0:02:54.9]} 39... Ra3 {[%clk 0:01:22.8]} 40. Rb4
{[%clk 0:02:45.1]} 40... Ra1 {[%clk 0:01:14.3]} 41. Rxd4 {[%clk 0:02:43.5]}
41... Rg1 {[%clk 0:01:12.7]} 42. c4 {[%clk 0:02:37.3]} 42... Rg3+ {[%clk
0:01:09.2]} 43. Kc2 {[%clk 0:02:35]} 43... Rh3 {[%clk 0:01:05.3]} 44. Rd6+
{[%clk 0:02:31.7]} 44... Kh7 {[%clk 0:01:04.2]} 45. h5 {[%clk 0:02:30.4]} 45...
Rg3 {[%clk 0:01:01.6]} 46. Rd4 {[%clk 0:02:29.4]} 46... Rg2+ {[%clk 0:00:58.8]}
47. Kc3 {[%clk 0:02:27.5]} 47... Rg3+ {[%clk 0:00:54.2]} 48. Kb4 {[%clk
0:02:26.2]} 48... g5 {[%clk 0:00:50.2]} 49. c5 {[%clk 0:02:25]} 49... Re3 {[%clk
0:00:46.3]} 50. c6 {[%clk 0:02:23.1]} 50... Re8 {[%clk 0:00:45]} 51. c7 {[%clk
0:02:21.6]} 51... Rc8 {[%clk 0:00:43.1]} 52. Rc4 {[%clk 0:02:18.5]} 52... Kg7
{[%clk 0:00:40.5]} 53. Nd4 {[%clk 0:02:18]} 53... Kf7 {[%clk 0:00:39]} 54. Nf5
{[%clk 0:02:14.4]} 54... Ke6 {[%clk 0:00:31.8]} 55. Kb5 {[%clk 0:02:00]} 55...
Kd7 {[%clk 0:00:29.7]} 56. Kb6 {[%clk 0:01:58.7]} 1-0

[Event "Live Chess"]
[Site "Chess.com"]
[Date "2023.05.20"]
[Round "-"]
[White "LiamBellwood"]
[Black "JashonTOGM"]
[Result "1-0"]
[WhiteElo "2106"]
[BlackElo "1079"]
[TimeControl "300"]
[EndTime "9:30:18 PDT"]
[Termination "LiamBellwood won by checkmate"]

1. d4 {[%clk 0:04:58.1]} 1... d5 {[%clk 0:04:54.1]} 2. Nc3 {[%clk 0:04:57.4]}
2... Nf6 {[%clk 0:04:49.9]} 3. Bf4 {[%clk 0:04:56.7]} 3... Nc6 {[%clk 0:04:45]}
4. Nb5 {[%clk 0:04:55.8]} 4... e5 {[%clk 0:04:37.7]} 5. Bxe5 {[%clk 0:04:54.3]}
5... Nxe5 {[%clk 0:04:35.5]} 6. dxe5 {[%clk 0:04:54.2]} 6... Nd7 {[%clk
0:04:34.1]} 7. Qxd5 {[%clk 0:04:51.6]} 7... Bb4+ {[%clk 0:04:23.4]} 8. c3 {[%clk
0:04:47.7]} 8... Ba5 {[%clk 0:04:19.3]} 9. Nf3 {[%clk 0:04:40.8]} 9... O-O
{[%clk 0:04:16.3]} 10. Qd1 {[%clk 0:04:27.2]} 10... Re8 {[%clk 0:04:11.1]} 11.
e3 {[%clk 0:04:10.3]} 11... Nxe5 {[%clk 0:04:06.6]} 12. Nxe5 {[%clk 0:04:10.2]}
12... Rxe5 {[%clk 0:04:05.3]} 13. Qxd8+ {[%clk 0:04:08.9]} 13... Re8 {[%clk
0:04:02.3]} 14. Qxe8# {[%clk 0:04:08.2]} 1-0

[Event "Live Chess"]
[Site "Chess.com"]
[Date "2023.05.20"]
[Round "-"]
[White "Brooms1989"]
[Black "guptarayan"]
[Result "1-0"]
[WhiteElo "950"]
[BlackElo "584"]
[TimeControl "300"]
[EndTime "9:30:21 PDT"]
[Termination "Brooms1989 won by checkmate"]

1. e4 {[%clk 0:04:56.3]} 1... e5 {[%clk 0:04:58.6]} 2. Nc3 {[%clk 0:04:53.7]}
2... f5 {[%clk 0:04:53]} 3. exf5 {[%clk 0:04:48.2]} 3... d5 {[%clk 0:04:48]} 4.
Qh5+ {[%clk 0:04:42.3]} 4... Ke7 {[%clk 0:04:36.6]} 5. Nf3 {[%clk 0:04:15.2]}
5... e4 {[%clk 0:04:34.3]} 6. Nd4 {[%clk 0:04:07.2]} 6... Nf6 {[%clk 0:04:26.8]}
7. Qh4 {[%clk 0:03:55.2]} 7... c5 {[%clk 0:04:21.9]} 8. Ne6 {[%clk 0:03:23.5]}
8... Bxe6 {[%clk 0:04:18.4]} 9. fxe6 {[%clk 0:03:23.4]} 9... Kxe6 {[%clk
0:04:15.9]} 10. Qh3+ {[%clk 0:03:16.8]} 10... Ke7 {[%clk 0:04:13.6]} 11. Be2
{[%clk 0:03:10.5]} 11... d4 {[%clk 0:04:11.3]} 12. Na4 {[%clk 0:03:00.9]} 12...
b5 {[%clk 0:04:05.1]} 13. Nxc5 {[%clk 0:02:57.1]} 13... Ke8 {[%clk 0:03:46.4]}
14. Bxb5+ {[%clk 0:02:51.8]} 14... Kf7 {[%clk 0:03:37.5]} 15. Qe6+ {[%clk
0:02:36.3]} 15... Kg6 {[%clk 0:03:34]} 16. Nxe4 {[%clk 0:02:33.3]} 16... a6
{[%clk 0:03:29]} 17. Nxf6 {[%clk 0:02:21.2]} 17... Qxf6 {[%clk 0:03:24.8]} 18.
Qe4+ {[%clk 0:02:11]} 18... Qf5 {[%clk 0:03:19.9]} 19. Qxa8 {[%clk 0:02:01.6]}
19... axb5 {[%clk 0:03:16.3]} 20. Qxb8 {[%clk 0:01:56.4]} 20... Qxc2 {[%clk
0:03:14.3]} 21. Qg3+ {[%clk 0:01:52.3]} 21... Kf7 {[%clk 0:03:11.9]} 22. Qb3+
{[%clk 0:01:45.9]} 22... Qxb3 {[%clk 0:03:02.7]} 23. axb3 {[%clk 0:01:45.8]}
23... Bc5 {[%clk 0:02:57.2]} 24. O-O {[%clk 0:01:43.6]} 24... Bd6 {[%clk
0:02:55.5]} 25. Ra7+ {[%clk 0:01:39.2]} 25... Kg6 {[%clk 0:02:51.9]} 26. d3
{[%clk 0:01:37.6]} 26... Re8 {[%clk 0:02:47.6]} 27. g3 {[%clk 0:01:30.3]} 27...
Re2 {[%clk 0:02:42.6]} 28. Ra6 {[%clk 0:01:25.3]} 28... Re6 {[%clk 0:02:38.1]}
29. Bf4 {[%clk 0:01:23]} 29... Kf6 {[%clk 0:02:31.8]} 30. Rxd6 {[%clk
0:01:16.3]} 30... Rxd6 {[%clk 0:02:28]} 31. Bxd6 {[%clk 0:01:16.2]} 31... Ke6
{[%clk 0:02:26]} 32. Bf4 {[%clk 0:01:14.9]} 32... Kf5 {[%clk 0:02:23.3]} 33. Re1
{[%clk 0:01:13.8]} 33... g5 {[%clk 0:02:21.2]} 34. Re5+ {[%clk 0:01:11]} 34...
Kg4 {[%clk 0:02:18.5]} 35. Rxg5+ {[%clk 0:01:09.6]} 35... Kf3 {[%clk 0:02:16.1]}
36. Rxb5 {[%clk 0:01:08.2]} 36... h5 {[%clk 0:02:14.2]} 37. Rd5 {[%clk
0:01:06.8]} 37... h4 {[%clk 0:02:12.3]} 38. gxh4 {[%clk 0:01:05.4]} 38... Ke2
{[%clk 0:02:10.2]} 39. Rxd4 {[%clk 0:01:04.6]} 39... Kf3 {[%clk 0:02:06.6]} 40.
h5 {[%clk 0:01:03.3]} 40... Kg4 {[%clk 0:02:04]} 41. h6 {[%clk 0:01:02.7]} 41...
Kh3 {[%clk 0:01:59.7]} 42. h7 {[%clk 0:01:02]} 42... Kh4 {[%clk 0:01:58.5]} 43.
Bb8+ {[%clk 0:01:00.1]} 43... Kh5 {[%clk 0:01:57]} 44. h8=Q+ {[%clk 0:00:58.8]}
44... Kg5 {[%clk 0:01:55.5]} 45. Qe5+ {[%clk 0:00:57.9]} 45... Kg6 {[%clk
0:01:54.3]} 46. Rd6+ {[%clk 0:00:57.2]} 46... Kh7 {[%clk 0:01:51.8]} 47. Qe7+
{[%clk 0:00:56.3]} 47... Kg8 {[%clk 0:01:49.8]} 48. Rd8# {[%clk 0:00:56.2]} 1-0

[Event "Live Chess"]
[Site "Chess.com"]
[Date "2023.05.20"]
[Round "-"]
[White "daniel9395"]
[Black "Balu13"]
[Result "0-1"]
[WhiteElo "436"]
[BlackElo "835"]
[TimeControl "300"]
[EndTime "9:30:22 PDT"]
[Termination "Balu13 won on time"]

1. d4 {[%clk 0:04:54.3]} 1... d5 {[%clk 0:04:59.9]} 2. Nf3 {[%clk 0:04:52.6]}
2... Nf6 {[%clk 0:04:56.1]} 3. e3 {[%clk 0:04:46.4]} 3... Bf5 {[%clk 0:04:55.2]}
4. Bd3 {[%clk 0:04:32.3]} 4... Bxd3 {[%clk 0:04:51.4]} 5. cxd3 {[%clk
0:04:30.8]} 5... Nc6 {[%clk 0:04:49.7]} 6. Nc3 {[%clk 0:04:23.8]} 6... e6 {[%clk
0:04:47.7]} 7. e4 {[%clk 0:04:21.4]} 7... Bb4 {[%clk 0:04:40.8]} 8. a3 {[%clk
0:04:18]} 8... Bxc3+ {[%clk 0:04:38.8]} 9. bxc3 {[%clk 0:04:16.9]} 9... b6
{[%clk 0:03:56.6]} 10. a4 {[%clk 0:04:03.4]} 10... a5 {[%clk 0:03:55]} 11. Ng5
{[%clk 0:03:49.5]} 11... e5 {[%clk 0:03:39.1]} 12. dxe5 {[%clk 0:03:33.8]} 12...
Nxe5 {[%clk 0:03:37.5]} 13. d4 {[%clk 0:03:30]} 13... Nc4 {[%clk 0:03:22.8]} 14.
e5 {[%clk 0:03:16.9]} 14... Ne4 {[%clk 0:03:09.6]} 15. Nxe4 {[%clk 0:03:06.6]}
15... dxe4 {[%clk 0:03:09.5]} 16. O-O {[%clk 0:02:57.9]} 16... f5 {[%clk
0:03:08]} 17. f3 {[%clk 0:02:54.8]} 17... e3 {[%clk 0:03:03.1]} 18. Qd3 {[%clk
0:02:43.2]} 18... Nxe5 {[%clk 0:02:54.7]} 19. Qxf5 {[%clk 0:02:34.6]} 19... Nc4
{[%clk 0:02:34.7]} 20. Qd3 {[%clk 0:02:11.4]} 20... Qd5 {[%clk 0:02:24.5]} 21.
Bxe3 {[%clk 0:02:04.8]} 21... O-O-O {[%clk 0:02:12.7]} 22. Rab1 {[%clk
0:01:41.2]} 22... Nxe3 {[%clk 0:02:06.7]} 23. Qxe3 {[%clk 0:01:34.5]} 23... Rhe8
{[%clk 0:02:06]} 24. Qd3 {[%clk 0:01:16.3]} 24... g6 {[%clk 0:01:59.9]} 25. Rb5
{[%clk 0:01:11]} 25... Qa2 {[%clk 0:01:46.8]} 26. Rbb1 {[%clk 0:01:00]} 26...
Kb7 {[%clk 0:01:37.6]} 27. f4 {[%clk 0:00:48.5]} 27... Re2 {[%clk 0:01:35.1]}
28. Qf3+ {[%clk 0:00:25.1]} 28... Ka7 {[%clk 0:01:08.7]} 29. Rbe1 {[%clk
0:00:18.9]} 29... Rde8 {[%clk 0:01:04.1]} 30. Rxe2 {[%clk 0:00:05.4]} 30... Rxe2
{[%clk 0:01:03.9]} 31. Rf2 {[%clk 0:00:00.6]} 31... Qa1+ {[%clk 0:01:02]} 0-1